[Event "Sheikh Russel GM 2021"]
[Site "Dhaka"]
[Date "2021.10.24"]
[Round "6.13"]
[White "Neelash Saha"]
[Black "Vignesh N R"]
[Result "0-1"]
[ECO "E01"]
[WhiteElo "2421"]
[BlackElo "2453"]
[Annotator "ChessBase"]
[PlyCount "96"]
[EventDate "2021.10.19"]
[EventType "swiss"]
[EventCountry "BAN"]
[SourceTitle "playchess.com"]
[Source "ChessBase"]
[SourceQuality "1"]
[TimeControl "40/5400+30:1800+30"]

1. d4 {[%emt 0:02:30]} Nf6 {[%emt 0:00:06]} 2. c4 {[%emt 0:00:05]} e6 {[%emt 0:00:03]} 3. g3 {[%emt 0:00:03]} c5 {[%emt 0:00:14]} 4. Nf3 {[%emt 0:00:04]} cxd4 {[%emt 0:00:05]} 5. Nxd4 {[%emt 0:00:03]} d5 {[%emt 0:00:07]} 6. Bg2 {[%emt 0:00:07]} e5 {[%emt 0:00:06]} 7. Nf3 {[%emt 0:00:02]} d4 {[%emt 0:00:08]} 8. O-O {[%emt 0:00:03]} Nc6 {[%emt 0:00:06]} 9. e3 {[%emt 0:00:04]} Be7 {[%emt 0:00:07]} 10. exd4 {[%emt 0:02:54]} exd4 {[%emt 0:00:37]} 11. Bf4 {[%emt 0:00:05]} Be6 {[%emt 0:00:07]} 12. Nbd2 {[%emt 0:13:49]} O-O {[%emt 0:00:20]} 13. Rc1 {[%emt 0:01:54]} Nh5 {[%emt 0:08:54]} 14. Nxd4 {[%emt 0:04:41]} Nxf4 {[%emt 0:00:40]} 15. Nxc6 {[%emt 0:00:05]} bxc6 {[%emt 0:00:06]} 16. gxf4 {[%emt 0:00:02]} Qd6 {[%emt 0:03:18]} 17. Nb3 {[%emt 0:07:23]} Qxf4 {[%emt 0:01:30]} 18. Qf3 {[%emt 0:00:07]} Qe5 {[%emt 0:11:43]} 19. Qc3 {[%emt 0:01:53]} Qxc3 {[%emt 0:06:10]} 20. Rxc3 {[%emt 0:00:05]} Bf6 {[%emt 0:00:05]} 21. Rc2 {[%emt 0:01:17]} Rab8 {[%emt 0:00:01]} 22. Na5 {[%emt 0:16:04]} Rxb2 {[%emt 0:01:30]} 23. Rxb2 {[%emt 0:00:13]} Bxb2 {[%emt 0:00:06]} 24. Rb1 {[%emt 0:00:33]} Bf6 {[%emt 0:06:12]} 25. Nxc6 {[%emt 0:09:07]} Bxc4 {[%emt 0:00:15]} 26. a4 {[%emt 0:00:10]} h5 {[%emt 0:12:08]} 27. Nxa7 {[%emt 0:02:59]} Rd8 {[%emt 0:00:25]} 28. Rc1 {[%emt 0:03:23]} Bb3 {[%emt 0:04:10]} 29. a5 {[%emt 0:02:18]} Rd2 {[%emt 0:00:10]} 30. Nc6 {[%emt 0:09:50]} Ra2 {[%emt 0:03:27]} 31. Be4 {[%emt 0:06:03]} g6 {[%emt 0:00:39]} 32. Rb1 {[%emt 0:01:34]} Be6 {[%emt 0:01:32]} 33. f4 {[%emt 0:06:13]} Bh4 {[%emt 0:05:41]} 34. Kh1 {[%emt 0:02:55]} Ra4 {[%emt 0:09:41]} 35. Bg2 {[%emt 0:01:18]} Kg7 {[%emt 0:01:03]} 36. Rd1 {[%emt 0:01:39]} Bg4 {[%emt 0:03:59]} 37. Rb1 {[%emt 0:01:18]} Bf2 {[%emt 0:01:38]} 38. Bd5 {[%emt 0:02:42]} Bh3 {[%emt 0:02:44]} 39. Bg2 {[%emt 0:00:20]} Bf5 {[%emt 0:00:13]} 40. Rf1 {[%emt 0:00:00]} Be3 {[%emt 0:00:00]} 41. Ne7 {[%emt 0:02:32]} Bd3 {[%emt 0:04:21]} 42. Rd1 {[%emt 0:00:04]} Bc2 {[%emt 0:01:11]} 43. Rf1 {[%emt 0:00:36]} Rxa5 {[%emt 0:10:31]} 44. h3 {[%emt 0:07:40]} Bd3 {[%emt 0:36:21]} 45. Rd1 {[%emt 0:01:30]} Bxf4 {[%emt 0:00:00]} 46. Bd5 {[%emt 0:01:44]} Be2 {[%emt 0:00:00]} 47. Re1 {[%emt 0:00:17]} Rxd5 {[%emt 0:00:00]} 48. Rxe2 {[%emt 0:00:06]} Rc5 {[%emt 0:00:00]} 0-1

[Event "Sheikh Russel GM 2021"]
[Site "Dhaka"]
[Date "2021.10.24"]
[Round "6.14"]
[White "Debashis, Das"]
[Black "Hossain, Enamul"]
[Result "1/2-1/2"]
[ECO "A04"]
[WhiteElo "2501"]
[BlackElo "2396"]
[Annotator "ChessBase"]
[PlyCount "148"]
[EventDate "2021.10.19"]
[EventType "swiss"]
[EventCountry "BAN"]
[SourceTitle "playchess.com"]
[Source "ChessBase"]
[SourceQuality "1"]
[TimeControl "40/5400+30:1800+30"]

1. c4 {[%emt 0:00:03]} c5 {[%emt 0:04:28]} 2. Nc3 {[%emt 0:00:18]} g6 {[%emt 0:00:35]} 3. g3 {[%emt 0:00:15]} Bg7 {[%emt 0:00:09]} 4. Bg2 {[%emt 0:00:08]} Nc6 {[%emt 0:00:15]} 5. Nf3 {[%emt 0:00:05]} e6 {[%emt 0:01:00]} 6. d4 {[%emt 0:00:19]} cxd4 {[%emt 0:00:27]} 7. Nb5 {[%emt 0:00:07]} d5 {[%emt 0:00:34]} 8. cxd5 {[%emt 0:00:08]} exd5 {[%emt 0:00:20]} 9. O-O {[%emt 0:00:15]} Nf6 {[%emt 0:00:33]} 10. Nbxd4 {[%emt 0:19:34]} O-O {[%emt 0:00:41]} 11. Nxc6 {[%emt 0:00:35]} bxc6 {[%emt 0:00:03]} 12. Qc2 {[%emt 0:00:06]} Bb7 {[%emt 0:08:46]} 13. Be3 {[%emt 0:03:35]} Re8 {[%emt 0:03:29]} 14. Bd4 {[%emt 0:00:18]} a5 {[%emt 0:01:07]} 15. Rfd1 {[%emt 0:08:24]} Bf8 {[%emt 0:11:05]} 16. b3 {[%emt 0:05:47]} Ne4 {[%emt 0:10:17]} 17. Ne5 {[%emt 0:03:56]} c5 {[%emt 0:09:45]} 18. Bb2 {[%emt 0:00:54]} Bg7 {[%emt 0:00:47]} 19. Bxe4 {[%emt 0:07:35]} Bxe5 {[%emt 0:00:10]} 20. Bf3 {[%emt 0:02:32]} Rc8 {[%emt 0:11:09]} 21. Rd2 {[%emt 0:06:06]} Qf6 {[%emt 0:05:32]} 22. Rad1 {[%emt 0:02:25]} Red8 {[%emt 0:02:31]} 23. Bxe5 {[%emt 0:12:54]} Qxe5 {[%emt 0:00:02]} 24. Rd3 {[%emt 0:00:31]} a4 {[%emt 0:07:02]} 25. bxa4 {[%emt 0:04:31]} Bc6 {[%emt 0:00:46]} 26. a5 {[%emt 0:02:07]} d4 {[%emt 0:00:39]} 27. Bxc6 {[%emt 0:02:00]} Rxc6 {[%emt 0:00:01]} 28. e3 {[%emt 0:00:29]} Rcd6 {[%emt 0:00:51]} 29. exd4 {[%emt 0:00:58]} Rxd4 {[%emt 0:01:05]} 30. Rxd4 {[%emt 0:02:10]} cxd4 {[%emt 0:01:36]} 31. a6 {[%emt 0:01:07]} d3 {[%emt 0:00:38]} 32. Qa4 {[%emt 0:03:50]} Qd4 {[%emt 0:13:26]} 33. Qxd4 {[%emt 0:02:46]} Rxd4 {[%emt 0:00:02]} 34. Kf1 {[%emt 0:03:58]} h5 {[%emt 0:02:11]} 35. Ra1 {[%emt 0:02:18]} Ra4 {[%emt 0:02:18]} 36. Ke1 {[%emt 0:00:15]} Kf8 {[%emt 0:00:22]} 37. Kd2 {[%emt 0:00:24]} Ra3 {[%emt 0:00:09]} 38. a7 {[%emt 0:00:10]} Ke7 {[%emt 0:00:08]} 39. a8=Q {[%emt 0:00:08]} Rxa8 {[%emt 0:00:02]} 40. a4 {[%emt 0:06:29]} Ra5 {[%emt 0:00:00]} 41. Kxd3 {[%emt 0:00:00]} Kd6 {[%emt 0:03:15]} 42. Ke4 {[%emt 0:00:00]} Re5+ {[%emt 0:06:31]} 43. Kd4 {[%emt 0:00:00]} Ra5 {[%emt 0:00:02]} 44. Ra3 {[%emt 0:00:00]} g5 {[%emt 0:00:46]} 45. Kc4 {[%emt 0:03:41]} g4 {[%emt 0:02:26]} 46. Kd4 {[%emt 0:07:20]} Rd5+ {[%emt 0:04:37]} 47. Kc4 {[%emt 0:02:52]} Ra5 {[%emt 0:00:35]} 48. Kb4 {[%emt 0:03:34]} Rf5 {[%emt 0:00:15]} 49. a5 {[%emt 0:00:12]} Kc7 {[%emt 0:00:16]} 50. a6 {[%emt 0:00:04]} Kb8 {[%emt 0:00:07]} 51. a7+ {[%emt 0:00:04]} Ka8 {[%emt 0:00:05]} 52. Ra2 {[%emt 0:00:04]} Rd5 {[%emt 0:08:28]} 53. Kc4 {[%emt 0:10:17]} Rd6 {[%emt 0:00:43]} 54. Kc5 {[%emt 0:00:29]} Rd3 {[%emt 0:00:17]} 55. Ra4 {[%emt 0:02:46]} Rd7 {[%emt 0:11:56]} 56. Kc6 {[%emt 0:00:50]} Re7 {[%emt 0:00:24]} 57. Kd5 {[%emt 0:02:24]} Re1 {[%emt 0:01:33]} 58. Kc6 {[%emt 0:02:57]} Rc1+ {[%emt 0:00:29]} 59. Kb6 {[%emt 0:01:06]} Rb1+ {[%emt 0:01:08]} 60. Ka6 {[%emt 0:00:39]} Rb7 {[%emt 0:00:23]} 61. Rf4 {[%emt 0:00:29]} Rxa7+ {[%emt 0:00:07]} 62. Kb6 {[%emt 0:00:02]} Re7 {[%emt 0:00:11]} 63. Kc6 {[%emt 0:00:27]} Kb8 {[%emt 0:00:44]} 64. Kd6 {[%emt 0:00:13]} Re1 {[%emt 0:00:55]} 65. Rf5 {[%emt 0:00:18]} Kc8 {[%emt 0:00:17]} 66. Rxf7 {[%emt 0:01:19]} Rh1 {[%emt 0:00:12]} 67. Rf8+ {[%emt 0:00:11]} Kb7 {[%emt 0:00:01]} 68. Rf5 {[%emt 0:00:37]} Rxh2 {[%emt 0:00:01]} 69. Ke5 {[%emt 0:00:17]} Kc6 {[%emt 0:03:15]} 70. Kf6 {[%emt 0:00:36]} Kd6 {[%emt 0:00:00]} 71. Kg6 {[%emt 0:00:15]} Ke7 {[%emt 0:00:00]} 72. Rxh5 {[%emt 0:00:31]} Rxf2 {[%emt 0:00:00]} 73. Rh4 {[%emt 0:00:03]} Kf8 {[%emt 0:00:00]} 74. Rxg4 {[%emt 0:00:09]} Kg8 {[%emt 0:00:03]} 1/2-1/2

[Event "Sheikh Russel GM 2021"]
[Site "Dhaka"]
[Date "2021.10.24"]
[Round "6.15"]
[White "Rios, Cristhian Camilo"]
[Black "Kislinsky, Alexey"]
[Result "1-0"]
[ECO "A43"]
[WhiteElo "2457"]
[BlackElo "2335"]
[Annotator "ChessBase"]
[PlyCount "109"]
[EventDate "2021.10.19"]
[EventType "swiss"]
[EventCountry "BAN"]
[SourceTitle "playchess.com"]
[Source "ChessBase"]
[SourceQuality "1"]
[TimeControl "40/5400+30:1800+30"]

1. d4 {[%emt 0:00:06]} g6 {[%emt 0:00:10]} 2. c4 {[%emt 0:00:13]} Bg7 {[%emt 0:00:06]} 3. Nc3 {[%emt 0:00:22]} c5 {[%emt 0:00:11]} 4. d5 {[%emt 0:00:11]} d6 {[%emt 0:00:06]} 5. e4 {[%emt 0:00:14]} e6 {[%emt 0:00:06]} 6. Bd3 {[%emt 0:00:42]} a6 {[%emt 0:01:44]} 7. Nge2 {[%emt 0:01:23]} Nd7 {[%emt 0:02:05]} 8. Bc2 {[%emt 0:03:22]} exd5 {[%emt 0:01:12]} 9. cxd5 {[%emt 0:01:31]} b5 {[%emt 0:00:34]} 10. O-O {[%emt 0:01:23]} Ne7 {[%emt 0:02:47]} 11. f4 {[%emt 0:05:11]} b4 {[%emt 0:06:07]} 12. Na4 {[%emt 0:00:17]} f5 {[%emt 0:01:03]} 13. e5 {[%emt 0:02:52]} Bb7 {[%emt 0:04:49]} 14. exd6 {[%emt 0:02:33]} Nxd5 {[%emt 0:06:04]} 15. Re1 {[%emt 0:10:24]} Kf8 {[%emt 0:10:14]} 16. Bb3 {[%emt 0:03:35]} N5b6 {[%emt 0:08:41]} 17. Be3 {[%emt 0:14:47]} Nxa4 {[%emt 0:05:02]} 18. Bxa4 {[%emt 0:00:07]} Bxb2 {[%emt 0:01:03]} 19. Rb1 {[%emt 0:00:12]} Bf6 {[%emt 0:00:26]} 20. Rc1 {[%emt 0:08:14]} Rc8 {[%emt 0:01:36]} 21. Nd4 {[%emt 0:13:21]} cxd4 {[%emt 0:06:25]} 22. Rxc8 {[%emt 0:00:26]} Qxc8 {[%emt 0:11:02]} 23. Bxd4 {[%emt 0:00:25]} Qc4 {[%emt 0:04:25]} 24. Bxf6 {[%emt 0:00:36]} Nxf6 {[%emt 0:03:04]} 25. d7 {[%emt 0:05:54]} Qc5+ {[%emt 0:00:53]} 26. Kh1 {[%emt 0:00:14]} Kg7 {[%emt 0:00:13]} 27. d8=Q {[%emt 0:00:23]} Rxd8 {[%emt 0:00:05]} 28. Qxd8 {[%emt 0:00:12]} Be4 {[%emt 0:02:06]} 29. Qd2 {[%emt 0:05:15]} Nd5 {[%emt 0:12:44]} 30. Bb3 {[%emt 0:01:58]} Qc3 {[%emt 0:00:15]} 31. Qxc3+ {[%emt 0:00:06]} Nxc3 {[%emt 0:00:06]} 32. Kg1 {[%emt 0:01:18]} a5 {[%emt 0:00:08]} 33. Kf2 {[%emt 0:00:06]} a4 {[%emt 0:00:50]} 34. Bc4 {[%emt 0:00:06]} Kf6 {[%emt 0:04:16]} 35. g3 {[%emt 0:03:48]} Nxa2 {[%emt 0:00:37]} 36. Bxa2 {[%emt 0:01:46]} b3 {[%emt 0:01:23]} 37. Ra1 {[%emt 0:00:49]} Ke6 {[%emt 0:04:45]} 38. Ke3 {[%emt 0:07:01]} Kd5 {[%emt 0:00:13]} 39. Bb1 {[%emt 0:00:22]} Bxb1 {[%emt 0:00:16]} 40. Rxa4 {[%emt 0:00:00]} Bc2 {[%emt 0:00:00]} 41. Kd2 {[%emt 0:01:45]} Ke6 {[%emt 0:02:16]} 42. Ra7 {[%emt 0:00:37]} h6 {[%emt 0:00:35]} 43. Ra6+ {[%emt 0:00:41]} Kf7 {[%emt 0:00:07]} 44. h4 {[%emt 0:04:01]} h5 {[%emt 0:07:41]} 45. Kc3 {[%emt 0:00:11]} Kg7 {[%emt 0:00:05]} 46. Rb6 {[%emt 0:00:07]} Kf7 {[%emt 0:00:05]} 47. Kd4 {[%emt 0:00:06]} Ke7 {[%emt 0:00:05]} 48. Ke5 {[%emt 0:00:12]} Kd7 {[%emt 0:00:13]} 49. Kf6 {[%emt 0:00:29]} Kc7 {[%emt 0:00:05]} 50. Rb4 {[%emt 0:00:05]} Kd6 {[%emt 0:00:05]} 51. Kxg6 {[%emt 0:00:07]} Kc5 {[%emt 0:00:04]} 52. Rb8 {[%emt 0:00:08]} Kc4 {[%emt 0:01:31]} 53. Kxh5 {[%emt 0:00:10]} Kc3 {[%emt 0:00:04]} 54. Kg6 {[%emt 0:00:40]} b2 {[%emt 0:00:08]} 55. Rxb2 {[%emt 0:00:06]} 1-0

[Event "Sheikh Russel GM 2021"]
[Site "Dhaka"]
[Date "2021.10.24"]
[Round "6.16"]
[White "Aronyak Ghosh"]
[Black "Himanshu, Sharma"]
[Result "1-0"]
[ECO "A45"]
[WhiteElo "2445"]
[BlackElo "2394"]
[Annotator "ChessBase"]
[PlyCount "62"]
[EventDate "2021.10.19"]
[EventType "swiss"]
[EventCountry "BAN"]
[SourceTitle "playchess.com"]
[Source "ChessBase"]
[SourceQuality "1"]
[TimeControl "40/5400+30:1800+30"]

1. d4 {[%emt 0:01:04]} Nf6 {[%emt 0:00:19]} 2. Bf4 {[%emt 0:01:13]} c5 {[%emt 0:01:15]} 3. d5 {[%emt 0:00:37]} b5 {[%emt 0:03:49]} 4. f3 {[%emt 0:06:47]} Qa5+ {[%emt 0:03:42]} 5. c3 {[%emt 0:09:18]} d6 {[%emt 0:06:01]} 6. e4 {[%emt 0:01:00]} g6 {[%emt 0:00:57]} 7. Nd2 {[%emt 0:05:25]} Bg7 {[%emt 0:04:41]} 8. a4 {[%emt 0:01:11]} b4 {[%emt 0:07:50]} 9. Nc4 {[%emt 0:04:49]} Qd8 {[%emt 0:00:18]} 10. cxb4 {[%emt 0:00:30]} cxb4 {[%emt 0:00:58]} 11. Ne2 {[%emt 0:00:38]} O-O {[%emt 0:03:00]} 12. Nd4 {[%emt 0:05:05]} Nfd7 {[%emt 0:07:39]} 13. Be3 {[%emt 0:09:36]} Nc5 {[%emt 0:10:54]} 14. Be2 {[%emt 0:01:59]} Bd7 {[%emt 0:01:19]} 15. O-O {[%emt 0:00:50]} Nba6 {[%emt 0:01:41]} 16. Re1 {[%emt 0:05:27]} b3 {[%emt 0:03:56]} 17. Qd2 {[%emt 0:01:43]} Rb8 {[%emt 0:02:24]} 18. Nb5 {[%emt 0:11:04]} Nxa4 {[%emt 0:03:24]} 19. Na5 {[%emt 0:00:10]} Rxb5 {[%emt 0:06:53]} 20. Rxa4 {[%emt 0:00:34]} Nc5 {[%emt 0:16:22]} 21. Bxb5 {[%emt 0:05:39]} Nxa4 {[%emt 0:00:09]} 22. Nc6 {[%emt 0:00:22]} Bxc6 {[%emt 0:00:11]} 23. dxc6 {[%emt 0:00:05]} Nb6 {[%emt 0:00:49]} 24. Ra1 {[%emt 0:03:01]} Qc7 {[%emt 0:02:34]} 25. Ra3 {[%emt 0:01:53]} Rb8 {[%emt 0:01:25]} 26. Rxb3 {[%emt 0:01:23]} a6 {[%emt 0:01:36]} 27. Bxa6 {[%emt 0:02:38]} Qxc6 {[%emt 0:00:09]} 28. Qa5 {[%emt 0:00:11]} Qc2 {[%emt 0:05:59]} 29. Rxb6 {[%emt 0:00:05]} Ra8 {[%emt 0:00:16]} 30. Qb4 {[%emt 0:00:53]} Qd1+ {[%emt 0:02:23]} 31. Bf1 {[%emt 0:01:49]} Rf8 {[%emt 0:01:37]} 1-0

[Event "Sheikh Russel GM 2021"]
[Site "Dhaka"]
[Date "2021.10.24"]
[Round "6.17"]
[White "Murshed, Niaz"]
[Black "Malakhatko, Vadim"]
[Result "0-1"]
[ECO "A25"]
[WhiteElo "2410"]
[BlackElo "2444"]
[Annotator "ChessBase"]
[PlyCount "78"]
[EventDate "2021.10.19"]
[EventType "swiss"]
[EventCountry "BAN"]
[SourceTitle "playchess.com"]
[Source "ChessBase"]
[SourceQuality "1"]
[TimeControl "40/5400+30:1800+30"]

1. c4 {[%emt 0:00:03]} e5 {[%emt 0:03:14]} 2. g3 {[%emt 0:00:29]} Nc6 {[%emt 0:02:10]} 3. Bg2 {[%emt 0:00:10]} g6 {[%emt 0:00:04]} 4. Nc3 {[%emt 0:01:36]} Bg7 {[%emt 0:00:07]} 5. e3 {[%emt 0:00:41]} Nge7 {[%emt 0:02:37]} 6. Nge2 {[%emt 0:00:19]} d6 {[%emt 0:00:05]} 7. d3 {[%emt 0:02:54]} h5 {[%emt 0:08:18]} 8. h3 {[%emt 0:02:30]} O-O {[%emt 0:02:11]} 9. Rb1 {[%emt 0:02:25]} a5 {[%emt 0:03:11]} 10. h4 {[%emt 0:03:50]} Bg4 {[%emt 0:00:35]} 11. a3 {[%emt 0:01:43]} Qc8 {[%emt 0:30:24]} 12. Bd2 {[%emt 0:01:46]} Nd8 {[%emt 0:00:36]} 13. Nd5 {[%emt 0:03:10]} Nxd5 {[%emt 0:03:59]} 14. cxd5 {[%emt 0:00:09]} a4 {[%emt 0:03:22]} 15. Rc1 {[%emt 0:07:12]} c5 {[%emt 0:00:43]} 16. dxc6 {[%emt 0:00:41]} bxc6 {[%emt 0:00:04]} 17. Qc2 {[%emt 0:02:32]} Be6 {[%emt 0:16:16]} 18. Bc3 {[%emt 0:01:26]} Qa6 {[%emt 0:01:11]} 19. O-O {[%emt 0:00:28]} Rb8 {[%emt 0:04:19]} 20. Rfe1 {[%emt 0:02:08]} Bb3 {[%emt 0:00:59]} 21. Qd2 {[%emt 0:00:11]} Ne6 {[%emt 0:04:57]} 22. d4 {[%emt 0:01:03]} c5 {[%emt 0:00:09]} 23. Kh2 {[%emt 0:08:44]} Qa7 {[%emt 0:01:29]} 24. d5 {[%emt 0:00:47]} Nc7 {[%emt 0:00:07]} 25. f4 {[%emt 0:00:55]} Nb5 {[%emt 0:04:42]} 26. f5 {[%emt 0:03:16]} Bh6 {[%emt 0:02:35]} 27. g4 {[%emt 0:02:42]} hxg4 {[%emt 0:00:16]} 28. Ng3 {[%emt 0:01:28]} Qe7 {[%emt 0:00:21]} 29. Qf2 {[%emt 0:00:54]} Qxh4+ {[%emt 0:00:07]} 30. Kg1 {[%emt 0:00:02]} Nc7 {[%emt 0:01:46]} 31. Ne4 {[%emt 0:00:03]} g3 {[%emt 0:01:16]} 32. Nxg3 {[%emt 0:01:20]} Nxd5 {[%emt 0:02:16]} 33. Bxd5 {[%emt 0:00:52]} Bxd5 {[%emt 0:00:04]} 34. Rcd1 {[%emt 0:00:06]} Ba8 {[%emt 0:00:23]} 35. Rxd6 {[%emt 0:00:22]} Rbd8 {[%emt 0:00:17]} 36. Rb6 {[%emt 0:10:47]} Qg4 {[%emt 0:00:18]} 37. Bxe5 {[%emt 0:02:13]} Rd5 {[%emt 0:00:04]} 38. Bd6 {[%emt 0:07:10]} Rxf5 {[%emt 0:00:09]} 39. Qe2 {[%emt 0:00:01]} Rf3 {[%emt 0:01:15]} 0-1

[Event "Sheikh Russel GM 2021"]
[Site "Dhaka"]
[Date "2021.10.24"]
[Round "6.18"]
[White "Abdisalimov, Abdimalik"]
[Black "Gleizerov, Evgeny"]
[Result "1-0"]
[ECO "A80"]
[WhiteElo "2406"]
[BlackElo "2443"]
[Annotator "ChessBase"]
[PlyCount "103"]
[EventDate "2021.10.19"]
[EventType "swiss"]
[EventCountry "BAN"]
[SourceTitle "playchess.com"]
[Source "ChessBase"]
[SourceQuality "1"]
[TimeControl "40/5400+30:1800+30"]

1. d4 {[%emt 0:00:02]} e6 {[%emt 0:00:04]} 2. Nf3 {[%emt 0:00:05]} f5 {[%emt 0:00:05]} 3. Bf4 {[%emt 0:00:06]} Nf6 {[%emt 0:00:04]} 4. e3 {[%emt 0:00:05]} Be7 {[%emt 0:00:06]} 5. Be2 {[%emt 0:00:40]} O-O {[%emt 0:00:14]} 6. O-O {[%emt 0:01:03]} b6 {[%emt 0:04:23]} 7. c4 {[%emt 0:02:42]} Bb7 {[%emt 0:00:13]} 8. Nc3 {[%emt 0:00:14]} Ne4 {[%emt 0:16:13]} 9. Nxe4 {[%emt 0:00:09]} fxe4 {[%emt 0:01:11]} 10. Nd2 {[%emt 0:00:21]} c5 {[%emt 0:09:39]} 11. dxc5 {[%emt 0:10:21]} bxc5 {[%emt 0:03:12]} 12. Qc2 {[%emt 0:00:18]} d5 {[%emt 0:01:23]} 13. Qb3 {[%emt 0:01:24]} Qb6 {[%emt 0:07:26]} 14. Bg4 {[%emt 0:00:06]} Bc8 {[%emt 0:04:49]} 15. Rfd1 {[%emt 0:12:00]} Qxb3 {[%emt 0:21:15]} 16. Nxb3 {[%emt 0:01:13]} Na6 {[%emt 0:05:28]} 17. cxd5 {[%emt 0:00:45]} exd5 {[%emt 0:00:21]} 18. Bxc8 {[%emt 0:00:07]} Raxc8 {[%emt 0:01:04]} 19. Rxd5 {[%emt 0:00:10]} Nb4 {[%emt 0:01:02]} 20. Re5 {[%emt 0:03:29]} Bd6 {[%emt 0:03:38]} 21. Rxe4 {[%emt 0:06:28]} Bxf4 {[%emt 0:00:13]} 22. exf4 {[%emt 0:00:13]} Nd3 {[%emt 0:00:05]} 23. Na5 {[%emt 0:01:54]} Nxb2 {[%emt 0:00:33]} 24. Rb1 {[%emt 0:13:37]} Nd3 {[%emt 0:00:40]} 25. g3 {[%emt 0:00:08]} Rc7 {[%emt 0:03:48]} 26. Kf1 {[%emt 0:07:29]} Nb4 {[%emt 0:01:00]} 27. a3 {[%emt 0:04:07]} Nd5 {[%emt 0:00:14]} 28. Rb3 {[%emt 0:00:57]} Nb6 {[%emt 0:00:52]} 29. Nc4 {[%emt 0:00:09]} Nxc4 {[%emt 0:00:10]} 30. Rxc4 {[%emt 0:00:05]} Rf6 {[%emt 0:06:09]} 31. Ke2 {[%emt 0:02:46]} Kf7 {[%emt 0:00:31]} 32. Re3 {[%emt 0:03:05]} Rb6 {[%emt 0:00:34]} 33. g4 {[%emt 0:01:21]} Rb2+ {[%emt 0:04:14]} 34. Kf3 {[%emt 0:00:02]} Rd2 {[%emt 0:00:54]} 35. h4 {[%emt 0:00:44]} h6 {[%emt 0:02:36]} 36. f5 {[%emt 0:00:51]} Rd5 {[%emt 0:01:37]} 37. Rec3 {[%emt 0:06:30]} Ke7 {[%emt 0:00:20]} 38. Re3+ {[%emt 0:00:50]} Kd7 {[%emt 0:00:27]} 39. a4 {[%emt 0:01:16]} Kc6 {[%emt 0:00:46]} 40. Kf4 {[%emt 0:00:00]} Rd4+ {[%emt 0:00:00]} 41. Rxd4 {[%emt 0:07:34]} cxd4 {[%emt 0:01:46]} 42. Re8 {[%emt 0:00:42]} Rd7 {[%emt 0:07:00]} 43. Ke4 {[%emt 0:01:28]} d3 {[%emt 0:01:02]} 44. Rc8+ {[%emt 0:00:08]} Kb6 {[%emt 0:00:10]} 45. Rc1 {[%emt 0:00:07]} d2 {[%emt 0:01:13]} 46. Rd1 {[%emt 0:00:37]} Kc5 {[%emt 0:05:21]} 47. Ke3 {[%emt 0:00:25]} Rd4 {[%emt 0:00:12]} 48. f3 {[%emt 0:00:50]} h5 {[%emt 0:00:13]} 49. Rxd2 {[%emt 0:00:16]} Rxa4 {[%emt 0:00:04]} 50. g5 {[%emt 0:00:51]} Rxh4 {[%emt 0:00:17]} 51. Rd7 {[%emt 0:00:28]} Ra4 {[%emt 0:00:48]} 52. g6 {[%emt 0:00:24]} 1-0

[Event "Sheikh Russel GM 2021"]
[Site "Dhaka"]
[Date "2021.10.24"]
[Round "6.19"]
[White "Ulybin, Mikhail"]
[Black "Lodhi, Mahmood"]
[Result "1-0"]
[ECO "C90"]
[WhiteElo "2443"]
[BlackElo "2315"]
[Annotator "ChessBase"]
[PlyCount "89"]
[EventDate "2021.10.19"]
[EventType "swiss"]
[EventCountry "BAN"]
[SourceTitle "playchess.com"]
[Source "ChessBase"]
[SourceQuality "1"]
[TimeControl "40/5400+30:1800+30"]

1. e4 {[%emt 0:02:22]} e5 {[%emt 0:00:05]} 2. Nf3 {[%emt 0:01:28]} Nc6 {[%emt 0:00:02]} 3. Bb5 {[%emt 0:01:24]} a6 {[%emt 0:00:07]} 4. Ba4 {[%emt 0:01:24]} Nf6 {[%emt 0:00:42]} 5. O-O {[%emt 0:01:52]} Be7 {[%emt 0:00:12]} 6. Re1 {[%emt 0:02:12]} b5 {[%emt 0:00:10]} 7. Bb3 {[%emt 0:00:22]} d6 {[%emt 0:00:02]} 8. a4 {[%emt 0:06:02]} Bg4 {[%emt 0:07:43]} 9. c3 {[%emt 0:01:43]} O-O {[%emt 0:00:25]} 10. d3 {[%emt 0:02:15]} Na5 {[%emt 0:02:10]} 11. Bc2 {[%emt 0:03:48]} c5 {[%emt 0:01:53]} 12. Nbd2 {[%emt 0:01:27]} b4 {[%emt 0:03:37]} 13. h3 {[%emt 0:04:38]} Bh5 {[%emt 0:04:22]} 14. cxb4 {[%emt 0:51:37]} cxb4 {[%emt 0:00:11]} 15. b3 {[%emt 0:02:20]} Nc6 {[%emt 0:01:03]} 16. Bb2 {[%emt 0:00:44]} Nd7 {[%emt 0:00:31]} 17. g4 {[%emt 0:04:49]} Bg6 {[%emt 0:01:04]} 18. Nc4 {[%emt 0:03:59]} Nc5 {[%emt 0:05:22]} 19. d4 {[%emt 0:02:04]} exd4 {[%emt 0:00:07]} 20. Nxd4 {[%emt 0:00:20]} Nxd4 {[%emt 0:00:07]} 21. Bxd4 {[%emt 0:00:41]} Ne6 {[%emt 0:00:08]} 22. Bb6 {[%emt 0:02:04]} Qb8 {[%emt 0:06:07]} 23. Be3 {[%emt 0:00:49]} Bf6 {[%emt 0:03:40]} 24. Rc1 {[%emt 0:00:48]} Bc3 {[%emt 0:05:46]} 25. Rf1 {[%emt 0:00:25]} Nc5 {[%emt 0:06:02]} 26. Qd5 {[%emt 0:01:01]} Re8 {[%emt 0:03:14]} 27. f3 {[%emt 0:00:28]} Re6 {[%emt 0:14:56]} 28. Rcd1 {[%emt 0:00:22]} Nd7 {[%emt 0:01:12]} 29. g5 {[%emt 0:00:49]} Bh5 {[%emt 0:01:49]} 30. Kg2 {[%emt 0:00:33]} Ne5 {[%emt 0:04:21]} 31. Nxd6 {[%emt 0:00:32]} h6 {[%emt 0:01:43]} 32. h4 {[%emt 0:00:31]} Ng6 {[%emt 0:01:02]} 33. Nf5 {[%emt 0:00:30]} Re5 {[%emt 0:00:21]} 34. Qd6 {[%emt 0:00:27]} Qxd6 {[%emt 0:01:02]} 35. Rxd6 {[%emt 0:00:22]} Rxf5 {[%emt 0:03:17]} 36. exf5 {[%emt 0:00:06]} Nxh4+ {[%emt 0:00:04]} 37. Kf2 {[%emt 0:00:58]} Bxf3 {[%emt 0:03:49]} 38. gxh6 {[%emt 0:00:21]} Bg4 {[%emt 0:01:26]} 39. Kg3 {[%emt 0:00:38]} Be2 {[%emt 0:02:04]} 40. Rf2 {[%emt 0:00:00]} Be1 {[%emt 0:00:00]} 41. Kxh4 {[%emt 0:12:29]} Rc8 {[%emt 0:06:18]} 42. Bb1 {[%emt 0:06:42]} Rc3 {[%emt 0:03:39]} 43. Rd8+ {[%emt 0:01:58]} Kh7 {[%emt 0:00:01]} 44. hxg7 {[%emt 0:01:11]} Kxg7 {[%emt 0:00:09]} 45. f6# {[%emt 0:00:20]} 1-0